bitfinex/quotes_ETHUSD_20260213
["timestamp","ask_amount","ask_price","bid_price","bid_amount"]
[1770958729179,1.09196363,1951.3,1950.2,0.00136273]
[1770958729380,1.09196363,1951.3,1950.0,0.001]
[1770958729381,0.49931863,1951.3,1950.0,0.001]
[1770958729559,0.49931863,1950.2,1949.2,1.4139626]
[1770958729763,0.49931863,1950.0,1949.3,0.001]
[1770958730260,0.49931863,1950.0,1949.4,0.001]
[1770958730462,0.49931863,1950.0,1949.3,0.001]
[1770958731078,0.49931863,1950.0,1949.4,0.001]
[1770958731273,0.49931863,1950.0,1949.3,0.001]
[1770958732192,1.78136998,1950.0,1949.3,0.001]
[1770958732367,0.49931863,1949.9,1949.3,0.001]
[1770958732568,0.49931863,1949.9,1949.4,0.001]
[1770958732794,0.49931863,1949.9,1949.3,0.001]
[1770958734501,2.159,1949.8,1946.9,0.2055641]
[1770958734674,0.49881863,1948.4,1947.0,8.18596311]
[1770958734874,0.49881863,1948.4,1948.1,0.26793511]
[1770958735195,0.49881863,1948.4,1947.0,8.18596311]
[1770958735396,0.49881863,1948.4,1947.3,0.841]
[1770958735597,0.49881863,1948.3,1947.3,0.841]
[1770958736176,0.49881863,1948.4,1947.3,0.841]
[1770958736392,0.49881863,1948.4,1947.4,0.26793511]
[1770958736868,0.49881863,1948.4,1947.5,1.55163215]
[1770958737378,0.49881863,1948.4,1947.6,0.26793511]
[1770958737682,0.49881863,1948.4,1947.7,0.26793511]
[1770958737866,0.49881863,1948.4,1947.5,1.28369704]
[1770958737867,0.49881863,1948.4,1947.6,0.26793511]
[1770958738267,0.49881863,1948.4,1947.7,0.26793511]
[1770958738467,0.49881863,1948.4,1947.6,0.26793511]
[1770958738693,0.49881863,1948.4,1947.7,1.28356523]
[1770958739093,0.26794366,1948.6,1947.8,0.26793511]
[1770958739598,0.26794366,1948.6,1947.9,0.26793511]
[1770958739785,0.26794366,1948.6,1947.8,0.26793511]
[1770958740313,0.26794366,1948.6,1947.7,10.18015495]
[1770958740314,0.49881863,1948.5,1947.9,0.26793511]
[1770958740491,0.49881863,1948.5,1946.3,8.89658972]
[1770958740492,0.46797652,1947.8,1946.3,8.89658972]
[1770958740679,8.89658972,1948.1,1946.9,8.89658972]
[1770958740680,0.46797652,1948.1,1946.9,8.89658972]
[1770958741014,1.2832358,1948.2,1947.6,0.001]
[1770958741015,0.46797652,1947.9,1947.6,0.001]
[1770958742113,0.46797652,1947.9,1946.7,3.92022458]
[1770958742415,0.26593511,1947.8,1946.7,3.92022458]
[1770958744007,0.26593511,1947.7,1946.9,8.89658972]
[1770958744209,0.26593511,1947.7,1946.7,1.55552242]
[1770958744398,0.26593511,1947.7,1946.9,2.636]
[1770958744724,0.46797652,1948.1,1946.9,2.636]
[1770958744912,0.26593511,1948.0,1946.9,2.636]
[1770958745421,0.26593511,1947.9,1947.1,8.89658972]
[1770958745714,1.28300173,1948.6,1947.1,8.89658972]
[1770958745715,0.26593511,1948.0,1947.1,8.89658972]
[1770958745915,0.46797652,1948.4,1947.1,8.89658972]
[1770958746121,0.73391163,1948.4,1947.1,8.89658972]
[1770958746286,0.26593511,1948.3,1947.1,8.89658972]
[1770958746487,0.46797652,1948.4,1947.1,8.89658972]
[1770958746683,0.26593511,1948.3,1947.1,8.89658972]
[1770958746920,0.46797652,1948.1,1947.0,1.2840267]
[1770958747384,0.46797652,1948.0,1946.7,5.13710683]
[1770958747589,0.46797652,1947.9,1946.7,5.13710683]
[1770958747825,0.46797652,1947.9,1946.7,0.001]
[1770958748200,0.26593511,1947.8,1946.7,0.001]
[1770958748423,0.46797652,1947.8,1946.7,0.001]
[1770958748646,0.26593511,1947.7,1946.7,0.001]
[1770958751246,0.26593511,1947.6,1946.7,0.001]
[1770958751438,0.26593511,1947.7,1946.7,8.89758972]
[1770958751638,0.46797652,1947.6,1946.7,0.001]
[1770958751834,0.73391163,1947.6,1946.7,0.001]
[1770958752144,0.26593511,1947.5,1946.7,0.001]
[1770958752516,0.26593511,1947.4,1946.7,0.001]
[1770958752728,0.26593511,1947.5,1946.7,0.001]
[1770958753243,0.26593511,1947.4,1946.7,0.001]
[1770958753543,0.46797652,1947.6,1946.7,0.001]
[1770958753544,0.26593511,1947.5,1946.7,0.001]
[1770958753914,0.26593511,1947.4,1946.7,0.001]
[1770958754112,0.46797652,1947.6,1946.8,0.001]
[1770958754317,0.46997652,1948.0,1946.8,0.001]
[1770958754939,0.46997652,1948.0,1946.8,9.37757723]
[1770958755247,0.46997652,1948.0,1946.9,1.28409266]
[1770958756018,0.46997652,1948.0,1946.9,3.92209266]
[1770958757624,0.46997652,1948.0,1946.9,4.40208017]
[1770958757823,0.002,1948.0,1947.0,0.47998751]
[1770958758962,0.46797652,1947.3,1946.5,1.12474376]
[1770958759135,0.46797652,1947.1,1946.5,1.12474376]
[1770958759335,1.08987643,1947.0,1946.5,1.12474376]
[1770958759550,1.08987643,1946.9,1945.9,5.13981014]
[1770958759725,0.01543271,1946.5,1945.9,5.13981014]
[1770958760133,0.46797652,1947.0,1945.9,5.13981014]
[1770958760339,1.08979573,1946.9,1946.0,1.40498751]
[1770958760563,0.46797652,1947.3,1946.0,1.40498751]
[1770958760855,1.09028958,1947.2,1946.1,0.47998751]
[1770958761044,0.46797652,1947.3,1946.2,11.53458972]
[1770958761233,1.09033057,1947.2,1946.2,11.53458972]
[1770958761555,0.46797652,1947.2,1946.1,1.28462052]
[1770958762357,0.46797652,1947.1,1946.1,1.28462052]
[1770958764729,1.75194091,1947.1,1946.1,1.28462052]
[1770958764925,0.46797652,1947.0,1946.1,1.28462052]
[1770958766829,0.002,1947.0,1946.2,0.47998751]
[1770958767025,0.002,1947.0,1946.3,2.639]
[1770958768443,0.002,1947.0,1946.4,1.28442252]
[1770958769456,0.46797652,1946.8,1946.0,1.28566962]
[1770958770430,0.46797652,1946.8,1946.0,0.001]
[1770958770431,0.49784716,1946.6,1946.0,0.001]
[1770958771767,1.78198837,1946.9,1946.0,0.001]
[1770958772167,0.49784716,1946.9,1946.0,0.001]
[1770958773152,1.59309343,1946.8,1946.0,0.001]
[1770958773357,1.09524627,1946.7,1946.0,0.001]
[1770958773669,1.09524627,1946.6,1946.0,0.001]
[1770958773871,1.09524627,1946.5,1946.0,0.001]
[1770958774038,0.49784716,1946.8,1946.0,0.001]
[1770958774238,1.09503598,1946.7,1946.0,0.001]
[1770958774442,0.49784716,1946.8,1946.0,0.001]
[1770958775548,0.002,1947.0,1946.0,0.001]
[1770958775873,0.48060369,1946.9,1946.0,0.001]
[1770958777875,0.48060369,1946.8,1946.0,0.001]
[1770958778781,0.002,1947.0,1946.0,0.48349065]
[1770958779255,0.002,1947.0,1946.1,0.001]
[1770958779586,0.002,1946.7,1946.1,0.001]
[1770958779805,0.002,1946.7,1946.1,1.28562052]
[1770958781702,0.002,1946.7,1946.1,0.001]
[1770958787710,0.002,1946.7,1946.1,0.48349065]
[1770958788710,0.002,1947.0,1946.5,9.37908037]
[1770958788911,0.002,1947.0,1946.6,0.48249065]
[1770958791323,0.002,1947.0,1946.7,1.28422458]
[1770958792329,0.002,1946.9,1946.7,1.28422458]
[1770958792814,0.002,1947.1,1946.7,1.76671523]
[1770958792999,0.48060369,1947.6,1946.7,1.76671523]
[1770958798217,0.28212195,1947.7,1946.7,1.76671523]
[1770958799326,0.28212195,1947.7,1946.7,1.28422458]
[1770958799532,0.28212195,1947.7,1946.8,0.48249065]
[1770958800150,0.28212195,1947.7,1946.9,1.28409266]
[1770958800447,0.002,1947.8,1947.0,3.12149065]
[1770958800739,0.002,1947.8,1947.1,0.45710977]
[1770958800937,0.002,1948.0,1947.5,0.45710977]
[1770958801228,0.002,1948.0,1947.6,0.45710977]
[1770958802038,0.002,1948.0,1947.7,1.28356523]
[1770958802609,0.28412195,1948.0,1947.7,1.28356523]
[1770958803405,0.28412195,1948.0,1947.6,1.28358062]
[1770958803628,0.28412195,1948.0,1947.5,1.28368836]
[1770958804227,0.28412195,1948.0,1947.3,5.13529317]
[1770958805113,0.002,1947.9,1947.3,5.13529317]
[1770958807442,0.002,1947.9,1947.3,5.59240294]
[1770958808110,10.42896079,1948.6,1947.3,5.59240294]
[1770958809642,9.50296079,1948.6,1947.3,5.59240294]
[1770958810835,9.50296079,1948.6,1947.4,0.5]
[1770958811135,8.21996258,1948.6,1947.4,0.5]
[1770958811346,4.06395084,1948.7,1947.4,0.5]
[1770958811834,4.06391221,1948.7,1947.4,0.5]
[1770958812235,1.855,1948.7,1947.4,0.5]
[1770958813142,3.13795515,1948.7,1947.5,1.28369704]
[1770958813321,3.13595515,1948.7,1947.5,1.78369704]
[1770958813744,3.13595515,1948.7,1947.3,5.13529317]
[1770958813745,8.21996258,1948.3,1947.3,5.13518152]
[1770958813946,8.21996258,1948.6,1947.3,5.63518152]
[1770958814245,8.21996258,1948.6,1947.4,0.5]
[1770958814410,1.855,1948.5,1947.4,0.5]
[1770958814618,1.28295515,1948.7,1947.4,0.5]
[1770958814810,3.13795515,1948.7,1947.4,0.5]
[1770958815046,1.28303823,1948.5,1947.3,5.13518152]
[1770958816139,8.21996258,1948.6,1947.3,5.13518152]
[1770958816339,1.28296057,1948.7,1947.4,0.5]
[1770958816518,1.856,1948.6,1947.4,0.5]
[1770958817416,1.856,1948.6,1947.5,1.78369704]
[1770958817617,1.855,1948.7,1947.5,1.78369704]
[1770958817947,3.13884558,1948.8,1947.6,0.5]
[1770958818140,0.002,1948.4,1947.6,0.5]
[1770958818945,0.002,1948.4,1947.5,1.28369704]
[1770958819519,0.002,1948.4,1947.4,0.001]
[1770958819865,8.21996258,1948.3,1947.4,0.001]
[1770958820346,0.002,1948.4,1947.4,0.001]
[1770958820521,1.85,1948.3,1947.4,0.001]
[1770958821756,6.98069198,1948.3,1947.4,0.001]
[1770958824543,8.21996258,1948.2,1947.4,0.001]
[1770958824844,30.0,1948.1,1947.4,0.001]
[1770958826475,1.28336755,1948.0,1947.4,0.001]
[1770958826971,1.28336755,1948.0,1947.3,0.001]
[1770958828170,1.867,1947.9,1947.3,0.001]
[1770958828571,3.15049041,1947.9,1947.3,0.001]
[1770958830174,3.15049041,1947.9,1947.0,1.28401523]
[1770958830741,3.15049041,1947.9,1946.8,5.63662049]
[1770958831549,3.14946364,1947.9,1947.4,0.001]
[1770958833080,1.88,1947.8,1947.4,0.001]
[1770958836891,3.16351139,1947.8,1947.3,0.001]
[1770958837187,9.50337915,1948.0,1947.3,0.001]
[1770958837394,1.896,1947.9,1947.3,0.001]
[1770958839170,3.17943599,1947.9,1947.3,0.001]
[1770958839369,1.896,1947.9,1947.3,0.001]
[1770958839570,3.17943572,1947.9,1947.3,0.001]
[1770958842196,1.896,1947.9,1947.3,0.001]
[1770958842904,3.17943488,1947.9,1947.3,0.001]
[1770958845282,11.39939746,1947.9,1947.4,0.001]
[1770958845477,0.002,1947.8,1947.4,0.001]
[1770958846885,0.002,1947.8,1947.0,1.78397096]
[1770958847813,0.002,1947.8,1947.1,0.5]
[1770958848187,0.002,1947.8,1947.0,1.28397096]
[1770958848385,8.22196258,1947.8,1947.0,1.78397096]
[1770958848696,0.002,1947.8,1947.0,1.78397096]
[1770958849419,1.921,1947.7,1947.1,0.5]
[1770958851317,3.20459484,1947.7,1947.1,1.78393129]
[1770958851726,1.921,1947.7,1947.1,1.78393129]
[1770958851933,1.921,1947.7,1947.2,0.5]
[1770958852094,0.002,1947.8,1947.2,0.5]
[1770958852294,3.20449944,1947.8,1947.2,0.5]
[1770958852622,1.921,1947.8,1947.2,0.5]
[1770958853122,3.20449946,1947.8,1947.2,0.5]
[1770958853631,3.20449946,1947.8,1947.2,1.78387037]
[1770958853820,1.92,1947.8,1947.2,1.78387037]
[1770958855027,0.002,1947.8,1947.3,0.5]
[1770958856027,0.002,1947.8,1947.4,1.28376296]
[1770958856214,0.002,1947.8,1947.3,5.63517967]
[1770958856546,0.002,1947.8,1947.4,1.28376296]
[1770958857039,0.002,1947.8,1947.2,1.75500377]
[1770958857240,0.002,1947.8,1947.3,0.47110895]
[1770958858341,0.002,1947.8,1947.5,0.47110895]
[1770958859707,0.002,1947.7,1947.5,0.47110895]
[1770958860199,0.002,1947.7,1947.2,1.28484574]
[1770958860599,0.002,1947.7,1947.3,0.47876495]
[1770958862245,0.002,1947.7,1947.5,0.47876495]
[1770958864323,0.002,1947.7,1947.6,1.76239608]
[1770958865445,0.002,1948.2,1947.6,1.28363113]
[1770958865627,0.002,1948.2,1947.7,0.47876495]
[1770958866528,0.46051625,1948.2,1947.5,1.28369704]
[1770958867039,0.46051625,1948.2,1947.4,1.76247428]
[1770958869067,0.45851625,1948.0,1947.4,1.28370933]
[1770958871857,0.45851625,1948.0,1947.4,1.76247428]
[1770958873161,0.45851625,1948.0,1947.5,0.001]
[1770958876768,0.002,1948.1,1947.6,0.47876495]
[1770958878970,0.002,1948.1,1947.6,1.76234138]
[1770958880006,0.46051625,1948.1,1947.5,1.28465014]
[1770958880147,0.45851625,1948.0,1947.5,0.001]
[1770958880952,0.45851625,1947.8,1947.5,0.001]
[1770958881142,0.45851625,1947.6,1947.5,0.001]
[1770958881352,0.45851625,1947.6,1947.2,0.001]
[1770958884055,3.61995243,1947.9,1947.2,0.47976495]
[1770958885591,2.33651625,1947.9,1947.3,1.28382889]
[1770958885786,0.45851625,1947.9,1947.3,1.76259384]
[1770958885958,1.74385697,1948.1,1947.4,0.47876495]
[1770958886159,6.52035661,1948.0,1947.4,0.47876495]
[1770958886382,6.97887286,1948.0,1947.4,0.47876495]
[1770958886888,1.882,1948.1,1947.5,0.47876495]
[1770958887056,0.002,1948.0,1947.5,0.47876495]
[1770958887858,0.002,1948.0,1947.6,1.28363113]
[1770958888590,0.002,1948.0,1947.5,1.76241573]
[1770958889360,0.002,1948.0,1947.5,1.28365078]
[1770958890959,0.002,1948.0,1947.5,1.76408734]
[1770958891684,6.99730547,1948.2,1947.6,0.48043656]
[1770958892189,6.52122261,1948.2,1947.6,0.48043656]
[1770958892381,0.000866,1948.2,1947.7,1.28356523]
[1770958893094,0.000866,1948.2,1947.7,1.76400179]
[1770958893498,1.76018755,1948.2,1947.4,1.28376296]
[1770958893669,0.47694886,1948.2,1947.4,1.7676489]
[1770958893997,0.47694886,1948.2,1947.5,0.48388594]
[1770958894795,0.000866,1948.2,1947.7,0.48388594]
[1770958896792,0.000866,1948.2,1947.8,1.28349933]
[1770958897097,0.000866,1948.2,1947.8,1.76738527]
[1770958899105,0.002,1948.1,1947.8,1.76738527]
[1770958899599,0.002,1948.1,1947.9,0.48388594]
[1770958900395,0.002,1948.1,1947.9,0.42788594]
[1770958900596,0.002,1948.3,1948.0,0.48388594]
[1770958901172,0.002,1948.3,1947.8,1.76731938]
[1770958901498,0.002,1948.3,1947.9,5.13359356]
[1770958901871,0.002,1948.3,1947.9,5.6174795]
[1770958904096,0.002,1948.3,1948.0,0.48388594]
[1770958905281,0.002,1948.3,1948.1,6.52035661]
[1770958905478,0.002,1948.3,1948.2,0.48388594]
[1770958905784,0.002,1948.8,1948.3,0.48388594]
[1770958905978,0.002,1948.8,1948.4,1.28310408]
[1770958906694,0.002,1948.8,1948.4,1.76699002]
[1770958907805,0.49445708,1948.8,1948.3,3.91314822]
[1770958908105,7.01481369,1948.8,1948.3,3.91316112]
[1770958908294,0.49245708,1948.7,1948.3,2.63]
[1770958909772,0.49245708,1948.7,1948.3,3.91316584]
[1770958910018,6.52235661,1948.8,1948.3,3.91316584]
[1770958910277,0.002,1948.8,1948.3,3.91316584]
[1770958912492,0.002,1948.7,1948.3,3.91316584]
[1770958913890,0.002,1948.7,1948.3,2.63]
[1770958914095,0.002,1948.7,1948.3,3.91316639]
[1770958914618,0.49445708,1948.7,1948.0,2.635]
[1770958917622,1.77542947,1948.6,1948.0,3.91833958]
[1770958917795,0.49245708,1948.5,1948.0,3.91833958]
[1770958918119,0.49445708,1948.7,1948.0,4.40222552]
[1770958918290,0.002,1948.7,1948.1,0.48388594]
[1770958919703,0.002,1948.7,1948.2,1.76712174]
[1770958920624,0.48660155,1948.7,1948.0,3.91835721]
[1770958921221,0.48660155,1948.7,1947.9,1.28339923]
[1770958921626,0.48660155,1948.7,1948.1,1.28330167]
[1770958921831,0.002,1948.7,1948.1,1.74797474]
[1770958923025,0.002,1948.7,1948.2,0.46467307]
[1770958923606,0.002,1948.7,1948.3,1.28316994]
[1770958924422,0.48660155,1948.7,1947.9,1.28343344]
[1770958924822,0.48660155,1948.7,1947.9,1.74810651]
[1770958925409,0.48660155,1948.7,1948.0,0.001]
[1770958926039,0.48460155,1948.5,1948.0,0.001]
[1770958928206,1.76770563,1948.4,1948.0,0.001]
[1770958929702,0.48460155,1948.3,1948.0,0.001]
[1770958930223,0.48460155,1948.5,1948.0,0.001]
[1770958930707,3.61355114,1948.7,1948.0,0.001]
[1770958931028,0.48460155,1948.6,1948.0,0.001]
[1770958932918,0.48460155,1948.5,1948.0,0.001]
[1770958934912,1.76764791,1948.5,1948.0,0.001]
[1770958935644,0.48460155,1948.5,1948.0,0.001]
[1770958936585,1.76951277,1948.7,1948.0,0.46567307]
[1770958937247,0.48660155,1948.7,1948.1,1.74797474]
[1770958937442,1.76951092,1948.7,1948.1,1.74797474]
[1770958938094,0.002,1948.6,1948.1,1.74797474]
[1770958939144,0.002,1948.6,1948.1,1.28330167]
[1770958939349,0.48660155,1948.6,1948.0,1.28432474]
[1770958940875,0.48660155,1948.6,1948.0,0.001]
[1770958942198,0.002,1948.6,1948.0,0.46567307]
[1770958944197,1.28498515,1948.6,1948.0,0.46567307]
[1770958945593,0.002,1948.6,1948.1,1.28330167]
[1770958950798,0.002,1948.6,1948.2,0.48146485]
[1770958950999,0.002,1948.6,1948.1,1.76576652]
[1770958951187,0.002,1948.5,1948.1,1.76576652]
[1770958951699,0.002,1948.5,1948.1,0.001]
[1770958954221,0.002,1948.5,1948.2,0.46660929]
[1770958954813,0.002,1948.5,1948.3,1.28316994]
[1770958955495,0.002,1948.5,1948.2,1.74979658]
[1770958955891,0.002,1948.5,1948.1,1.2842763]
[1770958959721,0.002,1948.5,1948.2,0.46660929]
[1770958960503,0.002,1948.8,1948.5,0.46660929]
[1770958960810,0.002,1948.8,1948.4,6.516874]
[1770958961128,0.002,1948.8,1948.3,0.46660929]
[1770958962937,0.002,1948.8,1948.4,1.28310408]
[1770958964028,0.002,1948.8,1948.4,1.74971337]
[1770958964217,0.002,1948.8,1948.4,1.75071337]
[1770958964729,0.002,1948.7,1948.4,1.28410408]
[1770958964928,0.002,1948.7,1948.4,0.001]
[1770958966120,0.002,1948.7,1948.4,6.98448329]
[1770958967711,0.002,1948.7,1948.5,1.28303823]
[1770958968633,0.002,1948.7,1948.4,7.80093734]
[1770958969131,0.002,1948.7,1948.4,8.26754663]
[1770958969436,0.002,1948.7,1948.4,10.86054663]
[1770958976467,0.002,1948.7,1948.4,10.39393734]
[1770958976638,0.002,1948.7,1948.5,0.001]
[1770958978548,0.002,1948.7,1948.5,6.98448329]
[1770958979161,0.002,1948.7,1948.5,0.001]
[1770958980251,0.47814342,1948.7,1948.5,0.001]
[1770958982767,0.49730268,1948.6,1948.5,0.001]
[1770958983374,0.49730268,1948.6,1948.3,0.001]
[1770958984566,0.002,1948.7,1948.3,0.001]
[1770958986686,0.002,1948.7,1948.3,1.78331873]
[1770958986890,0.002,1948.7,1948.3,8.30039267]
[1770958987795,0.002,1948.7,1948.4,0.49914879]
[1770958988699,0.002,1948.7,1948.4,1.78219848]
[1770958988984,0.002,1948.7,1948.4,1.78319848]
[1770958989187,0.49930268,1948.7,1948.4,0.001]
[1770958989392,0.002,1948.6,1948.4,1.28409459]
[1770958989700,0.002,1948.6,1948.4,1.78324338]
[1770958990151,0.002,1948.8,1948.5,0.49914879]
[1770958990356,0.002,1948.8,1948.4,7.80116853]
[1770958990582,0.002,1948.8,1948.4,8.30031732]
[1770958993494,0.002,1948.8,1948.5,0.49914879]
[1770958993922,0.002,1949.1,1948.4,7.80116853]
[1770958994064,0.002,1949.4,1949.0,7.01622273]
[1770958994263,0.49930268,1949.4,1948.9,2.637]
[1770958995167,0.49730268,1949.3,1948.4,7.94222273]
[1770958995374,0.49730268,1949.0,1948.5,3.92003823]
[1770958997206,1.28445542,1949.4,1948.6,0.49914879]
[1770958997207,0.49730268,1949.2,1948.6,0.49914879]
[1770958997419,0.49730268,1949.2,1948.6,7.01622273]
[1770958997788,0.49930268,1949.4,1948.7,0.49914879]
[1770958998014,0.49730268,1949.3,1948.6,6.51707394]
[1770958998177,0.49730268,1949.3,1948.5,4.41918702]
[1770958998377,0.49730268,1949.3,1948.5,3.92003823]
[1770958998575,7.80152318,1949.4,1948.7,6.51707394]
[1770958998576,1.78175202,1949.4,1948.7,6.51707394]
[1770958998786,0.49730268,1949.3,1948.7,6.51707394]
[1770958999192,0.49730268,1949.3,1948.7,1.28290655]
[1770959001000,0.49730268,1949.2,1948.6,1.28292123]
[1770959001184,0.002,1948.9,1948.6,1.28292123]
[1770959001382,0.002,1949.0,1948.7,7.01622273]
[1770959001592,0.002,1949.0,1948.6,1.28292123]
[1770959002617,0.49930268,1949.0,1948.5,3.91999866]
[1770959002927,0.002,1949.0,1948.5,3.91999866]
[1770959007759,0.49930268,1949.0,1948.5,3.91999866]
[1770959009339,0.002,1949.0,1948.6,0.49914879]
[1770959010332,0.002,1949.0,1948.7,1.28290655]
[1770959011238,0.002,1949.0,1948.6,1.28294035]
[1770959011443,0.45304231,1949.0,1948.5,3.91999835]
[1770959013459,0.45304231,1949.0,1948.6,0.001]
[1770959013675,0.002,1949.0,1948.6,0.001]
[1770959013837,0.002,1949.0,1948.6,0.49175455]
[1770959014934,0.002,1949.2,1948.7,0.49075455]
[1770959015129,0.002,1949.2,1948.9,0.49075455]
[1770959015359,0.002,1949.2,1948.9,1.28272253]
[1770959019335,0.002,1949.2,1948.9,4.41047708]
[1770959019665,0.002,1949.2,1948.9,3.91972253]
[1770959020372,0.002,1949.2,1948.9,4.41047708]
[1770959021767,0.002,1949.2,1949.0,0.49075455]
[1770959021973,0.002,1949.2,1949.1,0.49075455]
[1770959022844,0.002,1949.4,1949.1,0.49075455]
[1770959023146,0.002,1949.4,1949.1,7.00782849]
[1770959023463,0.002,1949.4,1949.2,2.637]
[1770959024464,0.002,1949.4,1949.3,1.28251167]
[1770959027887,0.002,1949.4,1949.3,1.77326622]
[1770959028189,0.002,1949.4,1949.3,1.28251167]
[1770959028359,0.002,1949.8,1949.3,1.28251167]
[1770959028556,0.002,1949.8,1949.3,1.77326622]
[1770959028972,0.002,1949.8,1949.3,8.29034016]
[1770959031165,0.4701963,1949.7,1949.2,3.91957148]
[1770959031688,6.51707394,1949.6,1949.2,2.637]
[1770959031986,0.4701963,1949.5,1949.2,2.637]
[1770959032156,6.51707394,1949.6,1949.2,2.637]
[1770959032353,6.98727024,1949.6,1949.2,2.637]
[1770959033572,0.4701963,1949.5,1949.2,2.637]
[1770959034061,0.4701963,1949.5,1949.1,0.001]
[1770959035991,0.4701963,1949.4,1949.1,0.001]
[1770959036761,0.4701963,1949.3,1949.1,0.001]
[1770959038677,1.75259961,1949.5,1949.1,0.001]
[1770959039168,0.4701963,1949.3,1949.2,0.001]
[1770959041194,1.76297373,1949.5,1949.2,0.001]
[1770959041392,0.48057042,1949.4,1949.2,0.001]
[1770959041595,6.99764436,1949.6,1949.2,0.001]
[1770959041785,1.757,1949.7,1949.2,0.48718277]
[1770959042102,2.23757042,1949.7,1949.2,0.001]
[1770959042505,0.48257042,1949.7,1949.2,0.001]
[1770959044106,1.76482175,1949.7,1949.2,0.001]
[1770959044611,0.48257042,1949.7,1949.2,0.001]
[1770959045904,0.002,1949.7,1949.2,0.48718277]
[1770959046781,6.99054955,1949.5,1949.2,0.001]
[1770959047189,0.48057042,1949.4,1949.2,0.001]
[1770959048608,6.50997913,1949.5,1949.2,0.001]
[1770959048806,0.48057042,1949.6,1949.2,0.001]
[1770959049008,0.48057042,1949.5,1949.2,0.001]
[1770959051406,0.48057042,1949.5,1949.3,0.001]
[1770959051906,2.24857042,1949.6,1949.3,0.001]
[1770959052090,3.53088832,1949.6,1949.3,0.001]
[1770959052289,3.53089063,1949.6,1949.3,0.001]
[1770959052830,0.48057042,1949.5,1949.3,0.001]
[1770959054795,0.48057042,1949.4,1949.1,0.001]
[1770959055333,6.50997913,1949.3,1949.1,0.001]
[1770959055928,3.54597945,1949.5,1949.1,0.001]
[1770959060643,7.79235531,1949.6,1949.1,0.001]
[1770959060841,0.48057042,1949.4,1949.1,0.001]
[1770959062536,3.08339735,1949.5,1949.1,0.001]
[1770959063309,3.08939735,1949.5,1949.1,0.001]
[1770959064038,1.807,1949.5,1949.2,0.001]
[1770959064439,0.48057042,1949.4,1949.2,0.001]
[1770959064643,9.59936211,1949.5,1949.2,0.001]
[1770959065114,8.31697913,1949.5,1949.2,0.001]
[1770959065443,9.59936708,1949.5,1949.2,0.001]
[1770959067739,1.807,1949.5,1949.2,0.001]
[1770959069141,3.08940289,1949.5,1949.2,0.001]
[1770959069348,0.48057042,1949.3,1949.1,0.001]
[1770959069645,6.50997913,1949.4,1949.1,0.001]
[1770959071049,7.79245356,1949.4,1949.1,0.001]
[1770959072851,6.50997913,1949.4,1949.1,0.001]
[1770959073052,3.56999317,1949.5,1949.1,0.001]
[1770959073930,6.50997913,1949.3,1949.1,0.001]
[1770959075850,3.56711515,1949.5,1949.1,0.001]
[1770959076052,3.56711515,1949.5,1949.2,0.001]
[1770959076254,0.002,1949.4,1949.2,0.001]
[1770959079152,0.47968381,1949.4,1949.1,0.001]
[1770959079456,1.28297239,1948.6,1948.5,0.001]
[1770959079763,10.13762069,1948.7,1948.3,0.001]
[1770959080071,3.62764156,1948.7,1948.3,0.001]
[1770959080224,1.867,1948.7,1948.3,0.001]
[1770959080627,1.872,1948.9,1948.5,0.49452109]
[1770959081360,1.872,1949.1,1948.5,0.49452109]
[1770959081524,1.872,1949.1,1948.6,1.28297239]
[1770959081720,6.50997913,1949.3,1948.7,0.49452109]
[1770959081951,1.873,1949.3,1948.7,0.49452109]
[1770959085965,1.873,1949.3,1948.9,0.49452109]
[1770959086161,0.002,1949.4,1948.9,0.49452109]
[1770959087576,6.51197913,1949.4,1948.8,1.28284072]
[1770959087780,7.79444385,1949.4,1948.8,1.77736181]
[1770959088075,0.47768381,1949.3,1948.7,3.91986268]
[1770959088449,0.47768381,1949.3,1948.7,3.13152109]
[1770959088660,0.47768381,1949.3,1948.7,4.41441855]
[1770959089151,0.47768381,1949.3,1948.7,3.13152109]
[1770959089352,0.47768381,1949.3,1949.0,0.001]
[1770959089675,0.47968381,1949.3,1949.0,0.001]
[1770959089881,0.002,1949.3,1949.0,0.001]
[1770959090081,13.49764207,1949.2,1948.3,2.70363848]
[1770959090284,6.50997913,1948.9,1948.3,0.926]
[1770959091052,0.927,1949.3,1948.8,0.49452109]
[1770959091053,0.002,1949.3,1948.8,0.49452109]
[1770959091251,0.002,1949.3,1948.5,0.49452109]
[1770959092785,0.002,1949.3,1948.6,1.77749348]
[1770959093088,6.50997913,1948.7,1948.3,0.001]
[1770959094151,6.98766294,1948.7,1948.3,0.001]
[1770959095082,6.50997913,1948.5,1948.3,0.001]
[1770959097182,1.28297239,1948.6,1948.3,0.001]
[1770959097486,9.68895152,1948.6,1948.3,0.001]
[1770959099089,6.98766294,1948.4,1948.1,0.001]
[1770959099292,6.98766294,1948.4,1947.9,0.001]
[1770959099293,6.50997913,1948.2,1947.9,0.001]
[1770959099894,1.903,1948.3,1947.9,0.001]
[1770959102270,1.903,1948.3,1947.9,0.47435047]
[1770959102469,1.913,1948.4,1947.9,0.47435047]
[1770959102767,8.42297913,1948.4,1947.9,0.001]
[1770959102968,6.52073026,1948.3,1947.9,0.001]
[1770959106702,6.52073026,1948.3,1947.9,0.47435047]
[1770959106903,1.913,1948.4,1947.9,0.47435047]
[1770959107398,1.28293757,1948.7,1947.9,0.47435047]
[1770959107705,8.44173026,1948.6,1947.9,0.47435047]
[1770959107873,9.72474748,1948.6,1947.9,1.75772505]
[1770959110484,6.52073026,1948.6,1948.0,0.47335047]
[1770959110797,1.927,1948.6,1948.0,0.47335047]
[1770959111800,2.37771613,1948.6,1948.0,0.47335047]
[1770959112392,1.927,1948.6,1948.0,0.47335047]